bitfinex/quotes_ETHUSD_20250806
["timestamp","ask_amount","ask_price","bid_price","bid_amount"]
[1754507293289,0.001,3687.0,3686.9,4.71707041]
[1754507294332,0.001,3687.0,3686.9,4.74419346]
[1754507295706,0.001,3687.0,3686.9,4.71707041]
[1754507298420,1e-08,3687.0,3686.9,4.74419346]
[1754507299228,1e-08,3687.0,3686.9,8.88219346]
[1754507299426,1e-08,3687.3,3687.2,2.71208505]
[1754507299732,1e-08,3687.4,3687.3,2.71201149]
[1754507299912,1e-08,3687.4,3687.3,7.8214316]
[1754507300229,1e-08,3687.4,3687.3,7.79431149]
[1754507302792,1e-08,3687.4,3687.3,2.71201149]
[1754507303218,0.95370001,3687.4,3687.3,2.71201149]
[1754507307131,1e-08,3687.4,3687.3,2.71201149]
[1754507310610,0.48150001,3687.4,3687.3,2.71201149]
[1754507310810,1e-08,3687.4,3687.3,2.71201149]
[1754507311550,1e-08,3687.4,3687.3,3.67181149]
[1754507311898,1e-08,3687.4,3687.3,3.20611149]
[1754507314156,1e-08,3687.4,3687.3,9.30883175]
[1754507314296,1e-08,3687.4,3687.3,9.28171164]
[1754507317520,1e-08,3687.4,3687.3,5.14471164]
[1754507317726,1e-08,3687.4,3687.3,9.30883175]
[1754507318044,1e-08,3687.4,3687.3,9.28171164]
[1754507322206,1e-08,3687.4,3687.3,4.67901164]
[1754507322407,1e-08,3687.4,3687.3,6.98401149]
[1754507322607,0.90070001,3687.4,3687.3,6.98401149]
[1754507324344,1e-08,3687.4,3687.3,6.98401149]
[1754507325854,0.90070001,3687.4,3687.3,6.98401149]
[1754507326052,0.90070001,3687.4,3686.4,0.4941]
[1754507326225,1e-08,3687.4,3686.6,2.71252644]
[1754507326417,1.0367,3687.3,3686.8,0.136]
[1754507326612,0.9007,3687.2,3686.8,0.136]
[1754507326817,0.9007,3687.2,3687.1,2.71214051]
[1754507327151,0.136,3687.3,3687.2,2.71208505]
[1754507327516,1.0367,3687.3,3687.2,2.71208505]
[1754507327846,1.0367,3687.3,3687.1,2.71215269]
[1754507328145,0.9007,3687.2,3687.1,2.71215269]
[1754507333536,0.9007,3687.2,3686.8,0.136]
[1754507333757,0.9007,3687.1,3686.7,0.136]
[1754507333928,0.136,3687.3,3687.0,2.71221284]
[1754507334637,0.9007,3687.2,3687.1,2.7121586]
[1754507335264,0.9007,3687.2,3687.1,2.7141586]
[1754507335962,0.9007,3687.2,3687.1,0.002]
[1754507338340,1.4507,3687.2,3687.1,0.002]
[1754507338536,9.01656839,3687.2,3687.1,0.002]
[1754507338730,11.72865344,3687.2,3687.1,0.002]
[1754507339843,9.01656839,3687.2,3687.1,0.002]
[1754507340255,11.72865344,3687.2,3687.1,0.002]
[1754507346562,3.26237929,3686.8,3686.7,0.002]
[1754507346871,19.81316797,3686.8,3686.7,0.002]
[1754507347188,20.74636797,3686.8,3686.7,0.002]
[1754507347485,20.85511497,3686.8,3686.7,0.002]
[1754507352575,3.26267361,3686.4,3686.3,0.002]
[1754507352776,19.81346229,3686.4,3686.3,0.002]
[1754507352977,20.74666229,3686.4,3686.3,0.002]
[1754507353388,20.85541629,3686.4,3686.3,0.002]
[1754507355018,21.05988425,3686.4,3686.3,0.002]
[1754507355179,23.78854611,3686.4,3686.3,0.002]
[1754507356195,30.96854611,3686.4,3686.3,0.002]
[1754507359301,16.07055743,3686.4,3686.3,0.002]
[1754507359500,16.07055743,3686.4,3686.3,0.9301]
[1754507359699,20.75755743,3686.4,3686.3,0.9301]
[1754507361041,20.75755743,3686.4,3686.3,0.002]
[1754507362239,30.03534611,3686.4,3686.3,0.002]
[1754507364134,30.96854611,3686.4,3686.3,0.002]
[1754507365247,30.76407815,3686.4,3686.3,0.002]
[1754507366410,2.71282079,3686.2,3686.1,0.002]
[1754507366517,2.71282079,3686.2,3685.8,0.002]
[1754507366518,15.54083027,3685.9,3685.8,0.002]
[1754507366722,19.67783027,3685.9,3685.8,0.002]
[1754507366965,20.74703027,3685.9,3685.8,0.002]
[1754507367456,20.85580827,3685.9,3685.8,0.002]
[1754507369154,19.92260827,3685.9,3685.8,0.002]
[1754507369356,16.26163337,3685.9,3685.8,0.002]
[1754507369557,20.39863337,3685.9,3685.8,0.002]
[1754507370058,21.64575264,3685.9,3685.8,0.002]
[1754507370355,21.33183337,3685.9,3685.8,0.002]
[1754507372755,3.26326242,3685.6,3685.5,0.002]
[1754507372938,10.53626242,3685.6,3685.5,0.002]
[1754507373333,11.44256242,3685.6,3685.5,0.002]
[1754507375959,10.53626242,3685.6,3685.5,0.002]
[1754507376159,10.53726242,3685.6,3685.5,0.9476]
[1754507376468,13.26592428,3685.6,3685.5,0.9476]
[1754507376930,14.08176128,3685.6,3685.5,0.4854]
[1754507382075,14.08176128,3685.6,3685.5,0.002]
[1754507382364,10.85006128,3685.6,3685.5,0.002]
[1754507382557,14.98706128,3685.6,3685.5,0.002]
[1754507382863,14.08076128,3685.6,3685.5,0.002]
[1754507383074,10.85006128,3685.6,3685.5,0.002]
[1754507383368,14.98706128,3685.6,3685.5,0.002]
[1754507385204,14.08076128,3685.6,3685.5,0.002]
[1754507385370,9.94376128,3685.6,3685.5,0.9476]
[1754507385671,0.951837,3685.6,3685.5,0.9476]
[1754507385861,4.273,3685.6,3685.5,0.9476]
[1754507386168,7.273,3685.6,3685.5,0.9476]
[1754507386368,7.823,3685.6,3685.5,0.9476]
[1754507386545,10.53626242,3685.6,3685.5,0.9476]
[1754507386871,7.823,3685.6,3685.5,0.9476]
[1754507388951,7.823,3685.6,3685.5,0.4854]
[1754507389155,3.136,3685.6,3685.5,0.9476]
[1754507389357,7.273,3685.6,3685.5,0.9476]
[1754507389982,3.136,3685.6,3685.5,3.66093604]
[1754507390182,7.273,3685.6,3685.5,3.66093604]
[1754507390367,7.273,3685.6,3685.5,4.02742964]
[1754507390368,0.136,3685.6,3685.5,4.02742964]
[1754507390576,2.71350582,3686.7,3685.5,1.3140936]
[1754507390777,0.136,3686.2,3685.9,2.71298928]
[1754507390958,0.136,3686.2,3685.5,0.5044936]
[1754507390959,7.137,3686.1,3686.0,2.71293687]
[1754507391143,7.137,3686.1,3686.0,3.65853687]
[1754507391673,4.137,3686.1,3686.0,3.65855476]
[1754507393077,0.136,3686.3,3686.2,2.71282079]
[1754507393379,7.273,3686.3,3686.2,2.71282079]
[1754507393587,7.273,3686.3,3686.2,3.19622079]
[1754507393772,7.273,3686.3,3686.2,3.65842079]
[1754507393773,7.137,3686.3,3686.2,3.65842079]
[1754507394084,7.137,3686.3,3686.2,0.9456]
[1754507395095,7.273,3686.3,3686.2,0.9456]
[1754507395262,7.273,3686.3,3686.2,0.4834]
[1754507396391,0.55,3686.1,3685.7,0.4622]
[1754507396613,3.55,3685.9,3685.5,0.4642]
[1754507396911,7.136,3685.8,3685.7,0.4834]
[1754507397198,3.0,3685.7,3685.6,0.4622]
[1754507397405,0.136,3685.7,3685.5,2.7153277]
[1754507397605,7.136,3685.6,3685.5,0.002]
[1754507398369,7.136,3685.6,3685.5,0.4854]
[1754507399796,7.136,3685.6,3685.5,0.9476]
[1754507400371,8.28594417,3685.6,3685.5,0.002]
[1754507400580,11.90550659,3685.6,3685.5,0.002]
[1754507401280,10.99920659,3685.6,3685.5,0.002]
[1754507401894,11.95430659,3685.6,3685.5,0.002]
[1754507404307,10.99920659,3685.6,3685.5,0.002]
[1754507405087,6.86320659,3685.6,3685.5,0.002]
[1754507405407,10.99920659,3685.6,3685.5,0.002]
[1754507405587,18.17920659,3685.6,3685.5,0.002]
[1754507405986,19.13430659,3685.6,3685.5,0.002]
[1754507406189,19.24307859,3685.6,3685.5,0.002]
[1754507406509,12.06307859,3685.6,3685.5,0.002]
[1754507408405,7.92707859,3685.6,3685.5,0.002]
[1754507408606,12.06307859,3685.6,3685.5,0.002]
[1754507412411,12.06307859,3685.6,3685.3,1e-08]
[1754507412412,6.26340967,3685.4,3685.3,1e-08]
[1754507412580,10.39940967,3685.4,3685.3,1e-08]
[1754507412781,11.35450967,3685.4,3685.3,1e-08]
[1754507413318,11.49050967,3685.4,3685.3,1e-08]
[1754507416604,7.35450967,3685.4,3685.3,1e-08]
[1754507416804,12.26371091,3685.4,3685.3,0.45650001]
[1754507417006,12.26371091,3685.4,3685.3,0.88520001]
[1754507417530,12.81371091,3685.4,3685.3,0.88520001]
[1754507418008,12.81371091,3685.4,3685.3,1e-08]
[1754507418835,8.67771091,3685.4,3685.3,0.45650001]
[1754507419137,12.81371091,3685.4,3685.3,0.45650001]
[1754507419737,13.27021091,3685.4,3685.3,0.45650001]
[1754507420036,13.27021091,3685.4,3685.3,1e-08]
[1754507420239,14.22531091,3685.4,3685.3,1e-08]
[1754507420400,10.08931091,3685.4,3685.3,1e-08]
[1754507420606,13.27021091,3685.4,3685.3,1e-08]
[1754507423340,14.22531091,3685.4,3685.3,1e-08]
[1754507424268,14.22531091,3685.4,3684.8,0.8852]
[1754507424269,0.55,3684.7,3682.4,3.0]
[1754507424436,3.55,3684.5,3684.0,2.71444082]
[1754507424636,0.136,3684.2,3684.1,2.71436714]
[1754507424837,4.272,3684.2,3684.1,2.71436714]
[1754507425460,4.136,3684.2,3684.1,2.71436714]
[1754507425770,4.136,3684.2,3684.1,3.31289998]
[1754507426277,4.136,3684.2,3684.1,4.19809998]
[1754507426882,4.136,3684.2,3684.1,3.17086714]
[1754507427176,4.272,3684.2,3684.1,3.59956714]
[1754507429282,4.272,3684.2,3684.1,0.8852]
[1754507429457,7.272,3684.2,3684.1,0.8852]
[1754507429646,7.822,3684.2,3683.7,2.85063661]
[1754507429852,0.136,3684.0,3683.8,0.4565]
[1754507430099,0.55,3683.8,3683.5,0.4287]
[1754507430247,0.55,3683.6,3683.5,0.4565]
[1754507430475,0.55,3683.6,3683.5,2.71480928]
[1754507430674,0.55,3683.6,3683.5,0.4287]
[1754507431110,0.55,3683.6,3683.5,0.4654]
[1754507431433,0.55,3683.6,3683.4,2.71486044]
[1754507431578,4.136,3683.5,3683.4,3.18026044]
[1754507431779,4.272,3683.5,3683.4,3.18026044]
[1754507432192,4.272,3683.5,3683.4,3.16826044]
[1754507432390,4.272,3683.5,3683.4,3.63366044]
[1754507433625,4.822,3683.5,3683.4,3.63366044]
[1754507433802,4.822,3683.5,3683.4,2.71486044]
[1754507434289,4.822,3683.5,3683.4,3.18026044]
[1754507437716,4.822,3683.5,3683.4,3.63366044]
[1754507437946,4.822,3683.5,3683.4,3.18026044]
[1754507439049,4.822,3683.5,3683.3,2.71492351]
[1754507439222,3.0,3683.4,3683.2,2.71500331]
[1754507439424,4.136,3683.3,3683.2,2.71500331]
[1754507439624,4.136,3683.3,3683.1,2.71507365]
[1754507439942,4.136,3683.3,3683.2,2.7150304]
[1754507440333,4.136,3683.3,3683.1,2.71508144]
[1754507440517,0.55,3683.1,3682.7,0.138]
[1754507440712,3.6357,3683.2,3682.7,0.002]
[1754507440713,4.272,3683.0,3682.7,0.002]
[1754507440920,4.272,3683.0,3682.7,2.71734056]
[1754507440921,0.55,3682.9,3682.7,2.71734056]
[1754507441134,4.136,3682.8,3682.7,2.71734056]
[1754507441334,4.272,3682.8,3682.7,2.71734056]
[1754507441611,4.272,3682.8,3682.7,3.18274056]
[1754507442119,4.272,3682.8,3682.7,2.71734056]
[1754507442827,4.822,3682.8,3682.7,2.71734056]
[1754507443339,4.822,3682.8,3682.7,0.002]
[1754507443716,4.822,3682.8,3682.7,2.71739902]
[1754507443916,4.822,3682.8,3682.7,0.002]
[1754507444139,5.7948,3682.8,3682.7,0.002]
[1754507445829,4.822,3682.8,3682.7,0.002]
[1754507446363,4.822,3682.8,3682.7,0.4674]
[1754507446566,4.272,3682.8,3682.7,3.63619902]
[1754507446770,4.272,3682.8,3682.7,3.18279902]
[1754507447235,2.71478465,3683.6,3682.7,3.18279902]
[1754507447236,4.136,3682.9,3682.8,2.71532529]
[1754507447434,4.136,3683.0,3682.8,0.9188]
[1754507447629,4.136,3683.0,3682.9,0.9188]
[1754507447943,4.136,3683.0,3682.9,1.0548]
[1754507448246,4.136,3683.0,3682.9,3.77005156]
[1754507448455,0.136,3683.4,3683.2,2.71501231]
[1754507448767,3.0,3683.2,3683.1,2.71508127]
[1754507448960,7.136,3683.2,3683.1,2.71508127]
[1754507450361,7.136,3683.2,3683.1,3.18048127]
[1754507452572,7.136,3683.2,3683.1,2.71508127]
[1754507453014,7.136,3683.2,3683.0,2.71516268]
[1754507453383,7.136,3683.2,3683.1,2.71510412]
[1754507454286,4.136,3683.2,3683.1,2.71510412]
[1754507455716,0.136,3683.4,3683.3,2.71495669]
[1754507455919,4.272,3683.4,3683.3,2.74210625]
[1754507456087,4.272,3683.4,3683.3,2.71495669]
[1754507456088,4.136,3683.4,3683.3,2.71495669]
[1754507456292,4.136,3683.4,3683.3,3.63375669]
[1754507456487,4.136,3683.4,3683.3,4.28224277]
[1754507456695,0.816026,3684.2,3683.3,1.56728608]
[1754507456900,4.136,3684.1,3684.0,2.71441809]
[1754507457114,7.136,3684.1,3684.0,3.17981809]
[1754507457509,7.136,3684.1,3683.9,2.71449211]
[1754507457510,3.0,3684.0,3683.9,2.71449211]
[1754507457712,4.136,3684.1,3683.8,2.71454424]
[1754507457911,4.136,3684.1,3683.9,2.71450968]
[1754507459039,3.0,3684.0,3683.8,2.71453371]
[1754507459334,4.136,3683.9,3683.8,2.71453371]
[1754507459829,4.136,3683.9,3683.7,2.85065437]
[1754507460028,0.9728,3683.8,3683.6,2.71472637]
[1754507460333,4.136,3683.7,3683.6,2.71472637]
[1754507460532,0.136,3683.8,3683.7,2.71466188]
[1754507460735,4.272,3683.8,3683.7,2.71466188]
[1754507461536,3.9285,3685.0,3684.3,2.71415397]
[1754507461720,0.9285,3685.0,3684.4,2.71414612]
[1754507461922,4.135,3684.7,3684.4,2.71414612]
[1754507462228,4.135,3684.6,3684.4,3.65908758]
[1754507462439,4.135,3684.6,3684.4,3.76794612]
[1754507462940,4.135,3684.6,3684.4,3.30294612]
[1754507463135,3.0,3684.6,3684.4,3.30294612]
[1754507466029,3.0,3684.6,3684.4,2.85014612]
[1754507466232,3.0,3684.6,3684.4,3.30294612]
[1754507466614,3.0,3684.6,3684.4,2.85014612]
[1754507472741,0.9295,3684.5,3684.4,2.85014612]
[1754507473160,0.001,3684.5,3684.4,2.85014612]
[1754507473463,0.001,3684.5,3684.4,2.71414612]
[1754507473760,0.9295,3684.5,3684.4,2.71414612]
[1754507473923,4.5915,3684.5,3684.4,2.71414612]
[1754507474123,4.135,3684.5,3684.4,2.71414612]
[1754507474857,4.135,3684.5,3684.4,3.16694612]
[1754507475031,0.001,3684.5,3684.4,3.76794612]
[1754507475232,0.001,3684.5,3684.4,3.79508758]
[1754507475429,0.001,3684.5,3684.4,3.76794612]
[1754507476363,0.001,3684.5,3684.4,3.30294612]
[1754507477128,0.001,3684.5,3684.4,3.76794612]
[1754507477328,0.001,3684.5,3684.4,4.82966378]
[1754507480866,0.001,3684.5,3684.4,3.91186378]
[1754507481041,0.9295,3684.5,3684.4,2.85014612]
[1754507481667,0.9295,3684.5,3684.4,2.71414612]
[1754507481836,0.001,3684.5,3684.4,2.71414612]
[1754507482532,0.001,3684.5,3684.4,2.74128758]
[1754507482736,0.001,3684.5,3684.4,4.19831939]
[1754507483144,0.001,3684.5,3684.4,4.17117793]
[1754507484648,0.001,3684.5,3684.4,3.71837793]
[1754507486461,0.001,3684.5,3684.4,2.71414612]
[1754507486976,0.001,3684.5,3684.4,2.74128758]
[1754507487150,0.001,3684.5,3684.4,2.71414612]
[1754507487675,0.001,3684.5,3684.4,3.16694612]
[1754507487864,0.001,3684.5,3684.4,2.71414612]
[1754507490172,0.001,3684.5,3684.4,4.20920524]
[1754507491578,0.001,3684.5,3684.4,4.18206378]
[1754507491766,0.001,3684.5,3684.4,3.72926378]
[1754507492277,0.001,3684.5,3684.4,3.75640524]
[1754507492572,0.001,3684.5,3684.4,3.72926378]
[1754507493941,0.001,3684.5,3684.4,3.75640524]
[1754507494766,0.001,3684.5,3684.4,4.25230524]
[1754507495249,0.001,3684.5,3684.4,3.72926378]
[1754507495444,0.001,3684.5,3684.4,3.75640524]
[1754507496249,0.001,3684.5,3684.4,2.71414612]
[1754507496649,0.001,3684.5,3684.4,2.74128758]
[1754507497887,0.4776,3684.5,3684.4,2.74128758]
[1754507498052,0.001,3684.5,3684.4,2.74128758]
[1754507501555,0.001,3684.5,3684.4,3.70598758]
[1754507501757,0.001,3684.5,3684.4,8.90790939]
[1754507502088,1e-08,3684.5,3684.4,8.88076793]
[1754507502293,1e-08,3684.5,3684.4,8.41196793]
[1754507502490,1e-08,3684.5,3684.4,8.88076793]
[1754507503791,1e-08,3684.5,3684.4,9.01676793]
[1754507504563,1e-08,3684.5,3684.4,8.54796793]
[1754507505365,1e-08,3684.5,3684.4,9.01676793]
[1754507508971,1e-08,3684.5,3684.4,8.54796793]
[1754507509166,1e-08,3684.5,3684.4,9.01676793]
[1754507509590,1e-08,3684.5,3684.4,8.05206793]
[1754507510222,1e-08,3684.5,3684.4,8.54796793]
[1754507510524,1e-08,3684.5,3684.4,8.05206793]
[1754507511624,1e-08,3684.5,3684.4,3.91906793]
[1754507511802,0.47660001,3684.5,3684.4,8.05106793]
[1754507512432,1e-08,3684.5,3684.4,8.05106793]
[1754507521495,1e-08,3684.5,3684.4,3.91906793]
[1754507521702,1e-08,3684.5,3684.4,8.05006793]
[1754507526135,0.90750001,3684.5,3684.4,8.05006793]
[1754507527620,0.45700001,3684.5,3684.4,8.05006793]
[1754507529830,0.90750001,3684.5,3684.4,8.05006793]
[1754507530409,0.90750001,3684.5,3684.4,8.05206793]
[1754507532438,0.45050001,3684.5,3684.4,8.05206793]
[1754507532639,0.90750001,3684.5,3684.4,2.85214612]
[1754507532839,0.90750001,3684.5,3684.4,0.002]
[1754507533337,0.90750001,3684.5,3684.4,2.71614612]
[1754507534352,0.90750001,3684.5,3684.4,0.002]
[1754507534714,0.90750001,3684.5,3684.4,2.71614612]
[1754507534915,0.90750001,3684.5,3684.4,0.002]
[1754507535113,1.09343331,3684.5,3684.4,0.002]
[1754507537653,1.64343331,3684.5,3684.4,0.002]
[1754507538018,5.45937031,3684.5,3684.4,0.002]
[1754507538249,5.17344277,3684.5,3684.4,0.002]
[1754507540833,2.45937031,3684.5,3684.4,0.002]
[1754507541026,1.27293701,3684.5,3684.4,2.71614612]
[1754507541220,1e-08,3684.5,3684.4,2.71614612]
[1754507541469,0.45700001,3684.5,3684.4,2.71614612]
[1754507541620,0.90750001,3684.5,3684.4,2.71614612]
[1754507545224,1e-08,3684.5,3684.4,2.71614612]
[1754507546032,1e-08,3684.5,3684.4,3.81110793]
[1754507546232,1e-08,3684.5,3684.4,4.41450793]
[1754507546568,1e-08,3684.5,3684.4,3.94710793]
[1754507547179,1e-08,3684.5,3684.4,3.44800793]
[1754507547381,0.45700001,3684.5,3684.4,2.85214612]
[1754507547568,0.90750001,3684.5,3684.4,2.85214612]
[1754507547738,1e-08,3684.5,3684.4,2.85214612]
[1754507548092,0.45700001,3684.5,3684.4,2.85214612]
[1754507548378,1e-08,3684.5,3684.4,2.85214612]
[1754507548936,1e-08,3684.5,3684.4,3.82198371]
[1754507550238,1e-08,3684.5,3684.4,3.84912517]
[1754507550896,1e-08,3684.5,3684.4,3.82198371]
[1754507551700,0.46120001,3684.5,3684.4,3.82198371]
[1754507551907,0.46120001,3684.5,3684.4,2.85214612]
[1754507552967,1e-08,3684.5,3684.4,2.85214612]
[1754507553139,1e-08,3684.5,3684.4,3.37608758]
[1754507553341,1e-08,3684.5,3684.4,3.83578758]
[1754507554881,1e-08,3684.5,3684.4,7.82978758]
[1754507555085,1e-08,3684.5,3684.4,8.99324786]
[1754507558165,1e-08,3684.5,3684.4,8.53354786]
[1754507560696,1e-08,3684.5,3684.4,8.03674786]
[1754507562815,0.46120001,3684.5,3684.4,3.90674786]
[1754507562962,0.46120001,3684.5,3684.4,2.85214612]
[1754507562963,0.91650001,3684.5,3684.4,2.85214612]
[1754507565096,1e-08,3684.5,3684.4,2.85214612]
[1754507568017,0.46120001,3684.5,3684.4,2.85214612]
[1754507568171,0.91650001,3684.5,3684.4,2.85214612]
[1754507570188,1e-08,3684.5,3684.4,2.85214612]
[1754507570480,1e-08,3684.5,3684.4,17.57951385]
[1754507570685,1e-08,3684.5,3684.4,18.04917239]
[1754507570934,1e-08,3684.5,3684.4,8.77138371]
[1754507571299,1e-08,3684.5,3684.4,8.31168371]
[1754507572302,1e-08,3684.5,3684.4,8.77138371]
[1754507572502,1e-08,3684.5,3684.4,8.31168371]
[1754507573624,1e-08,3684.5,3684.4,8.77138371]
[1754507576788,1e-08,3684.5,3684.4,7.81488371]
[1754507580335,1e-08,3684.5,3684.4,3.68588371]
[1754507580520,0.91650001,3684.5,3684.4,6.98014612]
[1754507580894,0.91650001,3684.5,3684.4,2.85214612]
[1754507581190,0.91650001,3684.5,3684.4,6.98014612]
[1754507581415,1e-08,3684.5,3684.4,6.98014612]
[1754507581623,1e-08,3684.5,3684.4,7.88244612]
[1754507581820,1e-08,3684.5,3684.4,8.94231371]
[1754507582339,1e-08,3684.9,3684.8,2.71385149]
[1754507582493,1e-08,3685.3,3685.2,2.71355693]
[1754507582692,1e-08,3685.4,3685.3,2.71348329]
[1754507582916,1e-08,3685.4,3685.3,3.18118329]
[1754507583129,1e-08,3685.4,3685.3,4.51178147]
[1754507583332,1e-08,3685.4,3685.3,4.94638147]
[1754507583837,1e-08,3685.4,3685.3,4.9735163]
[1754507584242,1e-08,3685.4,3685.3,4.94638147]
[1754507584468,1e-08,3685.4,3685.3,4.9735163]
[1754507586659,1e-08,3685.4,3685.3,4.94638147]
[1754507587156,1e-08,3685.4,3685.3,4.51178147]
[1754507589022,1e-08,3685.4,3685.3,4.5389163]
[1754507589229,1e-08,3685.4,3685.3,4.9735163]
[1754507589546,1e-08,3685.8,3685.7,2.71318881]
[1754507589711,0.001,3686.2,3686.1,2.71289438]
[1754507589712,1e-08,3686.2,3686.1,2.71289438]
[1754507590040,1e-08,3686.2,3686.1,6.86602332]
[1754507590260,1e-08,3686.2,3686.1,7.87719438]
[1754507590470,1e-08,3686.2,3686.1,8.93706197]
[1754507590910,1e-08,3686.2,3686.1,8.03476197]
[1754507591110,1e-08,3686.2,3686.1,3.90876197]
[1754507591305,0.93700001,3686.2,3686.1,6.97489438]
[1754507597339,0.93700001,3686.2,3686.1,2.84889438]
[1754507597545,0.93700001,3686.2,3686.1,6.97389438]
[1754507600735,0.93700001,3686.2,3686.1,2.84889438]
[1754507601055,0.93700001,3686.2,3686.1,6.97389438]
[1754507608976,0.93700001,3686.2,3685.2,3.18120379]
[1754507608977,0.88700001,3686.2,3685.2,0.4677]
[1754507609187,1.47447887,3686.1,3685.3,4.124]
[1754507609373,0.458,3686.0,3685.9,2.71304159]
[1754507611044,0.9248,3686.0,3685.9,2.71304159]
[1754507611647,0.8995,3686.0,3685.9,2.71304159]
[1754507611858,1.42969789,3686.0,3685.8,2.71308798]
[1754507612060,10.17728868,3685.9,3684.5,0.4561]
[1754507612252,0.136,3685.5,3685.0,0.136]
[1754507612454,0.136,3685.5,3685.4,2.71338981]
[1754507613055,1.0355,3685.5,3685.4,2.71338981]
[1754507622578,0.136,3685.5,3685.4,2.71338981]
[1754507622782,3.0,3685.9,3685.8,2.71305947]
[1754507622783,0.4668,3685.9,3685.8,2.71305947]
[1754507623077,0.386,3686.1,3685.9,2.71301704]
[1754507623383,0.8995,3686.0,3685.9,2.71301704]
[1754507626002,0.8995,3686.0,3685.8,2.71309169]
[1754507626347,0.8995,3685.9,3685.8,2.71309169]
[1754507630293,0.8995,3685.9,3685.7,2.71315892]
[1754507630472,0.8995,3685.9,3685.8,2.71311519]
[1754507631671,0.8528,3686.1,3685.8,2.71311519]
[1754507631885,1.2855,3686.1,3685.9,2.71302892]
[1754507632790,1.2855,3686.1,3685.8,2.71308701]
[1754507632993,0.386,3686.1,3685.9,2.71303876]
[1754507633293,0.386,3686.1,3685.8,2.71309299]
[1754507633480,0.8995,3686.0,3685.8,2.71309299]
[1754507635203,0.8995,3686.0,3685.6,0.5921]
[1754507635800,0.8995,3686.0,3685.9,2.71304159]
[1754507635996,0.386,3686.1,3686.0,2.71296798]
[1754507636298,0.25,3686.1,3686.0,4.15897609]
[1754507636478,0.25,3686.1,3686.0,4.29497609]
[1754507637700,0.25,3686.1,3686.0,8.41797609]
[1754507639995,0.25,3686.1,3686.0,7.97067609]
[1754507640368,0.25,3686.1,3686.0,7.51457609]
[1754507641327,0.7227,3686.1,3686.0,2.84896798]
[1754507641521,1.1954,3686.1,3686.0,2.84896798]
[1754507642716,0.25,3686.1,3686.0,2.84896798]
[1754507643241,0.25,3686.1,3686.0,2.71296798]
[1754507643449,0.7227,3686.1,3686.0,2.71296798]
[1754507643739,1.1954,3686.1,3685.9,0.002]
[1754507643957,1.47734,3686.0,3685.9,0.002]
[1754507644416,0.9454,3686.0,3685.9,2.71504159]
[1754507646328,0.4727,3686.0,3685.9,2.71504159]
[1754507646528,0.386,3686.1,3686.0,2.71296798]
[1754507646963,1.3314,3686.1,3686.0,2.71296798]
[1754507647540,1.3314,3686.1,3685.9,2.71501262]
[1754507647742,0.9454,3686.0,3685.9,2.71501262]
[1754507648935,0.4727,3686.0,3685.9,0.002]
[1754507649150,0.9454,3686.0,3685.9,2.71504159]
[1754507649535,0.386,3686.1,3686.0,2.71296798]
[1754507649859,0.25,3686.1,3686.0,2.71296798]
[1754507650243,0.25,3686.1,3686.0,3.77734894]
[1754507650443,0.25,3686.1,3686.0,4.35304894]
[1754507655744,0.25,3686.1,3686.0,3.45154894]
[1754507655947,1.1954,3686.1,3686.0,2.84896798]
[1754507656153,1.1954,3686.1,3686.0,6.97096798]
[1754507656570,1.1954,3686.1,3686.0,2.71296798]
[1754507657137,1.1954,3686.1,3685.9,0.002]
[1754507657439,0.9454,3686.0,3685.9,0.002]
[1754507657641,1.0814,3686.0,3685.9,0.002]
[1754507658369,1.0814,3686.0,3685.9,2.71504159]
[1754507660947,0.136,3686.0,3685.9,2.71504159]
[1754507661153,0.25,3686.1,3686.0,2.71296798]
[1754507661477,0.7227,3686.1,3686.0,2.71296798]
[1754507662063,1.1954,3686.1,3685.9,2.71499413]
[1754507662378,0.9454,3686.0,3685.9,2.71499413]
[1754507663317,0.9454,3686.0,3685.9,0.002]
[1754507663484,0.9454,3686.0,3685.9,2.71504159]
[1754507664548,0.25,3686.1,3686.0,2.71296798]
[1754507664855,0.25,3686.1,3686.0,3.17476798]
[1754507665064,0.25,3686.1,3686.0,4.63196205]
[1754507665257,0.25,3686.1,3686.0,4.32826205]
[1754507665460,0.25,3686.1,3686.0,3.86646205]
[1754507665649,0.25,3686.1,3686.0,4.32826205]
[1754507669292,0.25,3686.1,3686.0,3.86646205]
[1754507669479,0.25,3686.1,3686.0,4.32826205]
[1754507669797,0.25,3686.1,3686.0,8.44926205]
[1754507670668,0.25,3686.1,3686.0,7.98746205]
[1754507670986,0.25,3686.1,3686.0,3.86646205]
[1754507671166,0.001,3686.2,3686.1,2.71289438]
[1754507671368,0.001,3686.2,3686.1,8.82014474]
[1754507674611,0.001,3686.2,3686.1,8.36094474]
[1754507674963,0.001,3686.2,3686.1,8.82014474]
[1754507676272,0.001,3686.2,3686.1,7.90414474]
[1754507678972,0.457,3686.2,3686.1,3.78314474]
[1754507679183,0.8975,3686.2,3686.1,6.83389438]
[1754507680273,0.4415,3686.2,3686.1,6.83389438]
[1754507680604,0.8975,3686.2,3686.1,6.83389438]
[1754507686303,0.8975,3686.2,3686.1,2.71289438]
[1754507698121,0.001,3686.2,3686.1,2.71289438]
[1754507698736,0.8975,3686.2,3686.1,2.71289438]
[1754507703136,0.8975,3686.2,3686.1,2.71489438]
[1754507705131,0.001,3686.2,3686.1,2.71489438]
[1754507705326,0.001,3686.2,3686.1,4.76588638]
[1754507706428,0.001,3686.2,3686.1,4.29398638]
[1754507706632,0.001,3686.2,3686.1,8.41298638]
[1754507707111,0.001,3686.2,3686.1,8.88488638]
[1754507708818,0.001,3686.6,3686.5,2.71260002]
[1754507708819,1e-08,3686.6,3686.5,2.71260002]
[1754507709008,1e-08,3686.6,3686.5,7.64541049]